Cogmind - Beta 13 @@@ ROGUE MODE // 2024.05.20 @ 14:18:14 Player: CanadianCogs Result: Destroyed by Y-45 Defender with Beam Rifle Performance ------------- Evolutions (1) 500 Regions Visited (2) 400 Robots Destroyed (26) 130 Value Destroyed (480) 480 Prototype IDs (0) 0 Alien Tech Used (0) 0 Bonus (0) 0 TOTAL SCORE: 1510 Bonus ------- None Cogmind --------- Core Integrity 0/400 Matter 34/300 Energy 7/100 System Corruption 0% Temperature Cool (6) Movement Core (200) Ox3 Location -9/Materials Parts ------- > --- POWER (1) -------- (None) > --- PROPULSION (4) --- (None) > --- UTILITY (2) ------ Medium Storage Unit Shield Generator > --- WEAPON (2) ------- (None) > --- INVENTORY (10) --- Ion Engine ECM Suite Shield Generator Shield Generator Small Laser Peak State ------------ > --- POWER ------------ Ion Engine > --- PROPULSION ------- Improved Treads Improved Treads > --- UTILITY ---------- Small Storage Unit Seismic Detector > --- WEAPON ----------- Grenade Launcher Grenade Launcher > --- INVENTORY -------- Improved Treads Improved Treads ECM Suite Grenade Launcher Grenade Launcher Grenade Launcher Grenade Launcher Grenade Launcher [Rating: 10] Favorites ----------- Power Ion Engine Engine Ion Engine Propulsion Improved Treads Treads Improved Treads Utility Seismic Detector Device Seismic Detector Storage Medium Storage Unit Weapon Grenade Launcher Energy Gun Medium Laser Launcher Grenade Launcher Build | -11 -10 -9 ------- Run | Yrd Mat Mat Slots Evolved 2 | . . 2 Power . | . . . Propulsion 2 | . . 2 Utility . | . . . Weapon . | . . . Parts Attached 25 | 7 10 8 Power 1 | 1 . . Engine 1 | 1 . . Core . | . . . Reactor . | . . . Propulsion 6 | 2 2 2 Treads 6 | 2 2 2 Leg . | . . . Wheel . | . . . Hover . | . . . Flight . | . . . Utility 4 | 2 1 1 Device 2 | 1 . 1 Storage 2 | 1 1 . Processor . | . . . Hackware . | . . . Protection . | . . . Artifact . | . . . Weapon 14 | 2 7 5 Energy Gun 2 | 2 . . Energy Cannon . | . . . Ballistic Gun . | . . . Ballistic Cannon . | . . . Launcher 12 | . 7 5 Special Weapon . | . . . Impact Weapon . | . . . Slashing Weapon . | . . . Piercing Weapon . | . . . Special Melee Weapon . | . . . Unidentified Prototypes . | . . . Parts Lost 12 | . . 12 Power 1 | . . 1 Propulsion 4 | . . 4 Utility 1 | . . 1 Weapon 6 | . . 6 Highest Loss Streak 10 | . . 10 To Critical Strikes . | . . . Average Slot Usage (%) 76 | . 98 44 Engine 8 | . 14 1 Treads 19 | . 28 7 Device 12 | . 14 9 Storage 12 | . 14 11 Energy Gun 1 | . 2 . Launcher 20 | . 24 15 Naked Turns . | . . . Heaviest Build 22 | 15 22 22 Greatest Support 69 | 40 46 69 Greatest Overweight (x) 5 | . . 5 Average Overweight (x) . | . . 3 Largest Inventory Capacity 10 | 8 10 10 Average Capacity 9 | 7 8 10 Most Carried 10 | 5 10 10 Average Carried 5 | . 7 5 Final Capacity 10 | 8 10 10 Final Carried 10 | . 10 5 Class Distribution -------------------- 100% | Mutant Dominant Class ---------------- Mutant | -10/Materials Mutant | -9/Materials Resources | -11 -10 -9 ----------- Run | Yrd Mat Mat Matter Collected 274 | 211 . 63 Remotely . | . . . Salvage Created 364 | 137 110 117 Parts 38 | 9 18 11 Haulers Intercepted . | . . . Recyclers Shooed 1 | . . 1 Parts Field Recycled . | . . . Retrieved Matter . | . . . Parts Self-Destructed . | . . . Prevented . | . . . Kills | -11 -10 -9 ------- Run | Yrd Mat Mat Combat Hostiles Destroyed 17 | . 6 11 Melee 2 | . . 2 AOE 15 | . 6 9 Classes Destroyed 7 | 2 4 1 Worker 1 | . 1 . Tunneler 5 | 5 . . Recycler 1 | 1 . . Operator 2 | . 2 . Swarmer 9 | . 3 6 Grunt 7 | . 3 4 Sentry 1 | . . 1 Best Kill Streak 5 | 5 4 5 Combat Bots Only 5 | . 3 5 Max Kills in Single Turn 4 | 1 2 4 Gunslinging . | . . . Exploded 4 | . 2 4 Melee 1 | . . 1 Uniques/NPCs Destroyed . | . . . Combat | -11 -10 -9 -------- Run | Yrd Mat Mat Hostile Shots Fired 168 | . 43 125 Missed 37 | . 16 21 Damage Taken 1717 | . 345 1372 Core 472 | . 66 406 Absorbed by Shields 74 | . . 74 Core Remaining (%) 86 | 100 73 . Volleys Fired 33 | 15 7 11 Largest 2 | 2 2 2 Hottest 100 | 100 60 60 Shots Fired 61 | 30 14 17 Gun 30 | 30 . . Cannon . | . . . Launcher 31 | . 14 17 Special . | . . . Kinetic . | . . . Thermal 30 | 30 . . Explosive 31 | . 14 17 Electromagnetic . | . . . Robot Hit Streak 7 | 5 5 7 Robot Miss Streak 4 | 4 3 3 Penetration Max . | . . . Secondary Targets . | . . . Shots Hit Robots 36 | 18 6 12 Core Hits 40 | 7 13 20 Critical Kills . | . . . Critical Parts Destroyed . | . . . Critical Strikes 1 | 1 . . Burn 1 | 1 . . Melee Attacks . | . . . Impact . | . . . Slashing . | . . . Piercing . | . . . Sneak Attacks . | . . . Combat Hostiles . | . . . Follow-up Attacks . | . . . Damage Inflicted 1778 | 235 814 729 Guns 235 | 235 . . Cannons . | . . . Explosions 1478 | . 814 664 Melee . | . . . Ramming 65 | . . 65 Kinetic . | . . . Thermal 235 | 235 . . Explosive 1478 | . 814 664 Electromagnetic . | . . . Impact . | . . . Slashing . | . . . Piercing . | . . . Highest Corruption . | . . . Average Corruption . | . . . Corruption Purged . | . . . Corruption Blocked . | . . . Overload Shots . | . . . Overflow Damage 64 | . 18 46 Projectiles . | . . . Explosions 64 | . 18 46 Melee . | . . . Knockbacks . | . . . Impact . | . . . Kinetic . | . . . Secondary . | . . . Self-Inflicted Damage 373 | . 70 303 Shots 15 | . 4 11 Rammed 46 | . . 46 Targets Rammed 48 | . . 48 Kicked . | . . . Crushed 2 | . . 2 Highest Temperature 234 | 234 12 1 Average Temperature 85 | 89 12 1 Received Heat Transfer 396 | . 138 258 Siege Activations . | . . . Robots Corrupted . | . . . Combat Hostiles . | . . . Parts Fried . | . . . Impact Corruptions . | . . . Robots Melted . | . . . Combat Hostiles . | . . . Parts Melted 1 | 1 . . Heat Transferred 777 | 777 . . Parts Sabotaged . | . . . Parts Stolen . | . . . Parts Stripped . | . . . Power Chain Reactions . | . . . Alert | -11 -10 -9 ------- Run | Yrd Mat Mat Peak Influence 309 | 30 308 309 Initial 45 | . 19 45 Average 125 | 13 144 152 Maximum Alert Level 1 | . 1 1 Low Security (%) 76 | 100 72 71 Level 1 23 | . 27 28 Level 2 . | . . . Level 3 . | . . . Level 4 . | . . . Level 5 . | . . . High Security . | . . . Max Security . | . . . Squads Dispatched 4 | . 2 2 Investigation 3 | . 2 1 Extermination . | . . . Reinforcement 1 | . . 1 Assault . | . . . Garrison . | . . . Intercept . | . . . Searches Triggered . | . . . Construction Impeded . | . . . Haulers Reinforced . | . . . Active Scanning Responses . | . . . Cargo Convoy Interrupts . | . . . Stealth | -11 -10 -9 --------- Run | Yrd Mat Mat Distress Signals 1 | . . 1 Communications Jammed . | . . . Distress Signals . | . . . Times Spotted 24 | . 8 16 Peak Tracking Total 6 | . 4 6 Tactical Retreats . | . . . Traps | -11 -10 -9 ------- Run | Yrd Mat Mat Traps Triggered . | . . . Indirectly . | . . . Trap Hack Attempts . | . . . Triggered . | . . . Disarmed . | . . . Reprogrammed . | . . . Reused . | . . . Traps Extracted . | . . . Installed . | . . . Triggered . | . . . Machines | -11 -10 -9 ---------- Run | Yrd Mat Mat Machines Disabled 2 | . 1 1 Max in Single Turn 1 | . 1 1 Machines Repaired . | . . . Machines Dismantled . | . . . Machines Sabotaged . | . . . Overloaded Fab Kills . | . . . Hacking | -11 -10 -9 --------- Run | Yrd Mat Mat Machines Accessed 4 | . 3 1 Terminals 2 | . 2 . Fabricators . | . . . Repair Stations . | . . . Recycling Units 1 | . 1 . Scanalyzers 1 | . . 1 Garrison Access . | . . . Total Hacks 16 | . 12 4 Successful 8 | . 7 1 Failed 8 | . 5 3 Catastrophic . | . . . Database Lockouts . | . . . Manual 12 | . 12 . Terminals 8 | . 8 . Fabricators . | . . . Repair Stations . | . . . Recycling Units 4 | . 4 . Scanalyzers 4 | . . 4 Garrison Access . | . . . Terminal Hacks 1 | . 1 . Robot Schematic 1 | . 1 . Fabricator Hacks . | . . . Repair Station Hacks . | . . . Recycling Unit Hacks 1 | . 1 . Report Inventory 1 | . 1 . Scanalyzer 1 | . . 1 Insert Component 1 | . . 1 Garrison Access Hacks . | . . . Unauthorized Hacks 5 | . 5 . Terminals 2 | . 2 . Botnet 2 | . 2 . Fabricators . | . . . Repair Stations . | . . . Recycling Units 3 | . 3 . Reject 1 | . 1 . Mask 1 | . 1 . Tunnel 1 | . 1 . Scanalyzers . | . . . Garrison Access . | . . . Data Cores Recovered . | . . . Used . | . . . Hacking Detections 3 | . 2 1 Full Trace Events 3 | . 2 1 Feedback Events . | . . . Feedback Blocked . | . . . Robot Schematics Acquired 1 | . 1 . Robots Built . | . . . Authchips . | . . . Time . | . . . Total Robot Build Rating . | . . . Part Schematics Acquired . | . . . Parts Built . | . . . Authchips . | . . . Time . | . . . Total Part Build Rating . | . . . Parts Repaired . | . . . Time . | . . . Parts Recycled . | . . . Recycled Matter . | . . . Retrieved Matter . | . . . Retrieved Components . | . . . Parts Scanalyzed . | . . . Part Schematics Acquired . | . . . Parts Damaged . | . . . Bothacking | -11 -10 -9 ------------ Run | Yrd Mat Mat Used RIF Installer . | . . . Robots Hacked . | . . . Non-combat . | . . . Combat . | . . . Robot Hacks Applied . | . . . Relay Couplers Released . | . . . Fabnet Peak Effective % . | . . . Robots Rewired . | . . . Allies Hacked . | . . . Hacks Repelled . | . . . Allies | -11 -10 -9 -------- Run | Yrd Mat Mat Total Allies . | . . . Largest Group . | . . . Highest-Rated Group . | . . . Highest-Rated Ally . | . . . Total Orders . | . . . Ally Attacks . | . . . Total Damage . | . . . Kills . | . . . Allies Corrupted . | . . . Allies Melted . | . . . Intel | -11 -10 -9 ------- Run | Yrd Mat Mat Robot Analysis Total . | . . . Derelict Logs Recovered . | . . . Drone Launches . | . . . Drone Recoveries . | . . . Exploration | -11 -10 -9 ------------- Run | Yrd Mat Mat Turns Passed 933 | 154 459 320 Spaces Moved 398 | 69 252 77 Core 75 | 13 . 62 Treads 323 | 56 252 15 Legs . | . . . Wheels . | . . . Hover . | . . . Flight . | . . . Fastest Speed 50 | 50 160 160 Average Speed 175 | 139 160 259 Slowest Speed 300 | 160 160 300 Overloaded Moves . | . . . Propulsion Burnouts . | . . . Robots Hopped . | . . . Cave-ins Triggered . | . . . Exploration Rate (%) 15 | 4 33 9 Regions Visited 2 Branch Regions . Pre-discovered Areas 1 | . 1 . Known Exits Taken . | . . . Unknown Exits Taken 2 | 1 1 . Scrap Searched . | . . . Spaces Dug . | . . . Terrain Destroyed 159 | . 77 82 Melee . | . . . Projectile . | . . . AOE 159 | . 77 82 Terrain Rammed . | . . . Walls Destroyed . | . . . Machines Disabled . | . . . Actions | -11 -10 -9 --------- Run | Yrd Mat Mat Total 544 | 97 298 149 Wait 5 | 1 2 2 Move 396 | 68 251 77 Hop . | . . . Pick Up 23 | 6 15 2 Fast Attach 3 | 1 2 . Attach 14 | 6 . 8 Detach 1 | . . 1 Swap 8 | . 8 . Drop 13 | . 13 . Fire 33 | 15 7 11 Melee . | . . . Ram 5 | . . 5 Kick . | . . . Crush 43 | . . 43 Escape Stasis . | . . . Rewire . | . . . Trap . | . . . Miscellaneous . | . . . Route ------- -11/Scrapyard -10/Materials -9/Materials History --------- Turn | Location | Event 13 | -11/Scrapyard | Discovered new exit (range 15) 155 | -11/Scrapyard | Entered Materials 317 | -10/Materials | Build established: Mutant 400 | -10/Materials | Discovered new exit (range 15) 614 | -10/Materials | Entered another Materials area 614 | -9/Materials | Evolved 2 slots: Propulsion x2 724 | -9/Materials | Core integrity fell below 50% 761 | -9/Materials | Lost 10 parts (1p4n1u4w) 899 | -9/Materials | Core integrity fell below 20% 934 | -9/Materials | Destroyed by Y-45 Defender with Beam Rifle Last Messages --------------- 00845_ The unstable cave ceiling collapses. 00862_ R-06 Scavenger collects Sml. Laser. 00866_ Acquired 15 matter. 00869_ The unstable cave ceiling collapses. 00893_ G-34 Mercenary destroyed. 00893_ Grenade Launcher destroyed. 00893_ Destroyed Grenade Launcher. 00896_ G-34 Mercenary destroyed. 00904_ Acquired 20 matter. 00906_ The unstable cave ceiling collapses. 00909_ Acquired Ion Engine. 00915_ Acquired 8 matter. 00917_ R-06 Scavenger collects Sml. Laser. 00918_ Destroyed Com. Wheel. 00919_ Grenade Launcher destroyed. 00922_ The unstable cave ceiling collapses. 00925_ R-06 Scavenger destroyed. 00931_ The unstable cave ceiling collapses. 00932_ Acquired Sml. Laser. 00934_ The unstable cave ceiling collapses. Map ----- +----------------------------------------------------+ | ??????????????????# """"## #?????? | | ??????????????????#""S""#### ###?????? | | ?????????????????##"" ""# ## #???????? | | ?????????????????# # #???????? | | ?????????????????# """ # #???????? | | ?????????????????# """ # #???????? | | ?????????????????# """ # #???????? | | ?????????????????# " # ##??????? | | ?????????????????# T # #??????? | | ?????????????????# " #??????? | | ?????????????????# #??????? | | ?????????????????######## # #??????? | | ????????????????????????# ###?????? | | ????????????????????????# #?????? | | ????????????????????????# ###?????? | | ????????????????????????### ##??????? | | ?????????????????????????## ####???? | | ????????????????????????## # # # ##### | | ????????????????????????# # # | | ????????????????????????# # | | ????????????????????????## # | | ????????????????????????# # | | ???????????????####?????## # | | ???????????????# ####[! # | | ???????????????# [% # " # | | ???????????????# ]Y @ "" # | | ???????????????# # """ # | | ???????????????# ########### " # | | ???????????????## ????????????# # | | ????????????????#??????????????######### | | ???????????????????????????????????????? | | ???????????????????????????????????????? | | ???????????????????????????????????????? | | ???????????????????????????????????????? | | ???????????????????????????????????????? | | ???????????????????????????????????????? | | ???????????????????????????????????????? | | ???????????????????????????????????????? | | ???????????????????????????????????????? | | ???????????????????????????????????????? | | ???????????????????????????????????????? | | ???????????????????????????????????????? | | ???????????????????????????????????????? | | ???????????????????????????????????????? | | ???????????????????????????????????????? | | ???????????????????????????????????????? | | ???????????????????????????????????????? | | ???????????????????????????????????????? | | ???????????????????????????????????????? | | ???????????????????????????????????????? | +----------------------------------------------------+ Best States ------------- Heat Dissipation 28 Energy Generation 10 Energy Capacity 250 Matter Stores 251 Matter Capacity 300 Sight Range 16 Terrain Scan Density 10 Evasion (%) 50 Recoil Reduction 3 Item Schematics ----------------- None Robot Schematics ------------------ S-10 Pest | -10/Materials | Hacked Fabricated ------------ Nothing Alien Tech Used ----------------- None Achievements -------------- Dramatic Entrance Challenges ------------ None Game ------ Seed SlugSingularityAxe Manual? 0 Play Time 00:13:09 Cumulative 30.7 hours Start 2024.05.20 @ 14:08:05 End 2024.05.20 @ 14:18:14 Sessions 1 Manual Loads 0 Difficulty Rogue Special Mode None Game No. 52 Rogue 52 Adventurer 0 Explorer 0 Win Type - Total 0 Types 0/0/0/0/0/0/0/0/0 Lore% 20 Gallery% 27 Achievement% 26 Wizard Run 0 Options --------- Layout 0 ASCII 0 Keyboard 0 Movement Mouse Keybinds 0 Fullscreen 2 Font 18/SmallcapsGlow Map View 38x25 Zoom Use 99% Tactical HUD 1 Map Filters NONE Filters NONE Steam 1 RUN: cb4cfb3d-6861-41a7-8edc-a7111da62892